fUSD/lending_fUSD_20240222
["ID","MTS","AMOUNT","RATE_DAILY","PERIOD"]
[314894907,1708625473388,-500.0,0.00033013,4]
[314894908,1708625473398,-662.36,0.00033013,4]
[314894909,1708625473411,-5320.7,0.00033013,4]
[314894910,1708625473422,-500.0,0.00033013,4]
[314894911,1708625473432,-1389.1,0.00033013,4]
[314894912,1708625473441,-500.0,0.00033013,4]
[314894913,1708625473450,-500.0,0.00033013,4]
[314894914,1708625473460,-1178.0,0.00033013,4]
[314894915,1708625473470,-500.0,0.00033013,4]
[314894916,1708625473480,-4535.27,0.00033013,4]
[314894917,1708625473490,-574.08,0.00033013,4]
[314894918,1708625473499,-1510.56,0.00033013,4]
[314894919,1708625473509,-500.0,0.00033013,4]
[314894920,1708625473519,-500.0,0.00033013,4]
[314894921,1708625473529,-151.0,0.00033013,7]
[314894922,1708625473538,-913.43,0.00033013,4]
[314894923,1708625473547,-500.0,0.00033013,4]
[314894924,1708625473557,-957.57,0.00033013,4]
[314894925,1708625473567,-1132.71,0.00033013,4]
[314894926,1708625473577,-151.0,0.00033013,7]
[314894927,1708625473586,-500.0,0.00033013,2]
[314894928,1708625473596,-1840.14,0.00033013,4]
[314894929,1708625473606,-182.999342,0.00033013,7]
[314894930,1708625473615,-1614.812565,0.00033013,7]
[314894931,1708625473625,-151.0,0.00033013,7]
[314894932,1708625473635,-1105.16,0.00033013,4]
[314894933,1708625473644,-856.33,0.00033013,4]
[314894934,1708625473654,-500.0,0.00033013,4]
[314894935,1708625473666,-1614.812565,0.00033013,7]
[314894936,1708625473675,-182.999342,0.00033013,7]
[314894937,1708625473685,-500.0,0.00033013,4]
[314894938,1708625473696,-500.0,0.00033013,4]
[314894939,1708625473706,-8688.16,0.00033013,4]
[314894940,1708625473717,-165.83929594,0.00033013,4]
[314894941,1708625473727,-593.46526614,0.00033013,4]
[314894942,1708625473737,-500.0,0.00033013,4]
[314894943,1708625473748,-500.0,0.00033013,4]
[314894944,1708625473760,-500.0,0.00033013,4]
[314894945,1708625473773,-1035.38,0.00033013,4]
[314894946,1708625473784,-500.0,0.00033013,4]
[314894947,1708625473794,-597.54,0.00033013,4]
[314894948,1708625473805,-500.0,0.00033013,4]
[314894949,1708625473815,-500.0,0.00033013,4]
[314894950,1708625473826,-1031.07,0.00033013,4]
[314894951,1708625473837,-151.0,0.00033013,7]
[314894952,1708625473847,-607.73,0.00033013,4]
[314894953,1708625473858,-500.0,0.00033013,4]
[314894954,1708625473872,-4152.62,0.00033013,4]
[314894955,1708625473882,-4573.59,0.00033013,4]
[314894956,1708625473892,-533.62531712,0.00033013,4]
[314894957,1708625473902,-500.0,0.00033013,4]
[314894958,1708625473916,-512.15290183,0.00033013,4]
[314894959,1708625473926,-500.0,0.00033013,4]
[314894960,1708625473936,-5220.29,0.00033013,4]
[314894961,1708625473946,-1750.52,0.00033013,4]
[314894962,1708625473956,-500.0,0.00033013,4]
[314894963,1708625473966,-500.0,0.00033013,4]
[314894964,1708625473976,-740.42,0.00033013,4]
[314894965,1708625473986,-27929.76,0.00033013,4]
[314894966,1708625473995,-543.8,0.00033013,4]
[314894967,1708625474005,-579.71,0.00033013,4]
[314894968,1708625474014,-500.0,0.00033013,4]
[314894969,1708625474024,-2617.91,0.00033013,4]
[314894970,1708625474034,-500.0,0.00033013,4]
[314894971,1708625474043,-163.954301,0.00033013,7]
[314894972,1708625474052,-500.0,0.00033013,4]
[314894973,1708625474062,-200.34466719,0.00033013,4]
[314894974,1708625474073,-769.4,0.00033013,4]
[314894975,1708625474082,-500.0,0.00033013,4]
[314894976,1708625474092,-163.954301,0.00033013,7]
[314894977,1708625474102,-3104.43,0.00033013,4]
[314894978,1708625474111,-500.0,0.00033013,4]
[314894979,1708625474121,-2557.13,0.00033013,4]
[314894980,1708625474131,-151.0,0.00033013,2]
[314894981,1708625474141,-763.62,0.00033013,4]
[314894982,1708625474150,-31733.49,0.00033013,4]
[314894983,1708625474161,-635.4,0.00033013,4]
[314894984,1708625474170,-151.0,0.00033013,7]
[314894985,1708625474180,-1402.56,0.00033013,4]
[314894986,1708625474190,-500.0,0.00033013,4]
[314894987,1708625474200,-10076.31,0.00033013,4]
[314894988,1708625474210,-719.16,0.00033013,4]
[314894989,1708625474220,-500.0,0.00033013,4]
[314894990,1708625474230,-549.71,0.00033013,4]
[314894991,1708625474240,-151.0,0.00033013,2]
[314894992,1708625474250,-540.22,0.00033013,4]
[314894993,1708625474259,-815.24,0.00033013,4]
[314894994,1708625474268,-10365.29,0.00033013,4]
[314894995,1708625474279,-1019.93,0.00033013,4]
[314894996,1708625474289,-1908.5,0.00033013,4]
[314894997,1708625474299,-500.0,0.00033013,4]
[314894998,1708625474309,-1831.86,0.00033013,4]
[314894999,1708625474319,-1930.81,0.00033013,4]
[314895000,1708625474329,-4645.8,0.00033013,4]
[314895001,1708625474338,-500.0,0.00033013,4]
[314895002,1708625474348,-500.0,0.00033013,4]
[314895003,1708625474357,-500.0,0.00033013,4]
[314895004,1708625474367,-500.0,0.00033013,4]
[314895005,1708625474376,-831.39,0.00033013,4]
[314895006,1708625474386,-1113.04,0.00033013,4]
[314895007,1708625474398,-2272.34,0.00033013,4]
[314895008,1708625474410,-703.63,0.00033013,4]
[314895009,1708625474419,-899.16,0.00033013,4]
[314895010,1708625474429,-19048.88,0.00033013,4]
[314895011,1708625474438,-517.2348012,0.00033013,4]
[314895012,1708625474447,-500.0,0.00033013,4]
[314895013,1708625474457,-4986.223576,0.00033013,7]
[314895014,1708625474466,-612.06,0.00033013,4]
[314895015,1708625474476,-4986.223576,0.00033013,7]
[314895016,1708625474485,-1790.32,0.00033013,4]
[314895017,1708625474495,-316.339277,0.00033013,7]
[314895018,1708625474504,-6652.12,0.00033013,4]
[314895019,1708625474513,-500.0,0.00033013,4]
[314895020,1708625474523,-3342.93,0.00033013,4]
[314895021,1708625474532,-316.339277,0.00033013,7]
[314895022,1708625474541,-4986.223576,0.00033013,7]
[314895023,1708625474550,-1083.4,0.00033013,4]
[314895024,1708625474559,-4986.223576,0.00033013,7]
[314895025,1708625474568,-500.0,0.00033013,4]
[314895026,1708625474578,-500.0,0.00033013,4]
[314895027,1708625474587,-3448.92,0.00033013,4]
[314895028,1708625474596,-316.339277,0.00033013,7]
[314895029,1708625474605,-316.339277,0.00033013,7]
[314895030,1708625474615,-500.0,0.00033013,4]
[314895031,1708625474624,-2397.11,0.00033013,4]
[314895032,1708625474633,-500.0,0.00033013,4]
[314895033,1708625474642,-566.02,0.00033013,4]
[314895034,1708625474651,-588.46,0.00033013,4]
[314895035,1708625474663,-668.81,0.00033013,4]
[314895036,1708625474672,-504.65,0.00033013,4]
[314895037,1708625474682,-1569.54,0.00033013,4]
[314895038,1708625474691,-890.14,0.00033013,4]
[314895039,1708625474701,-500.0,0.00033013,4]
[314895040,1708625474710,-2839.46,0.00033013,4]
[314895041,1708625474719,-500.0,0.00033013,4]
[314895042,1708625474728,-151.0,0.00033013,7]
[314895043,1708625474737,-151.0,0.00033013,7]
[314895044,1708625474747,-500.0,0.00033013,4]
[314895045,1708625474756,-500.0,0.00033013,4]
[314895046,1708625474766,-1599.27,0.00033013,4]
[314895047,1708625474778,-12262.15,0.00033013,4]
[314895048,1708625474787,-500.0,0.00033013,4]
[314895049,1708625474796,-4428.36,0.00033013,4]
[314895050,1708625474805,-603.26,0.00033013,4]
[314895051,1708625474815,-684.48,0.00033013,4]
[314895052,1708625474824,-500.0,0.00033013,4]
[314895053,1708625474834,-500.0,0.00033013,4]
[314895054,1708625474843,-372.72652134,0.00033013,4]
[314895055,1708625474852,-2710.14,0.00033013,4]
[314895056,1708625474864,-11511.86,0.00033013,4]
[314895057,1708625474875,-13857.62,0.00033013,4]
[314895058,1708625474885,-935.58,0.00033013,4]
[314895059,1708625474893,-503.26865708,0.00033013,4]
[314895060,1708625474902,-1092.92,0.00033013,4]
[314895061,1708625474912,-526.21311996,0.00033013,4]
[314895062,1708625474921,-500.0,0.00033013,4]
[314895063,1708625474930,-1594.69,0.00033013,4]
[314895064,1708625474940,-500.0,0.00033013,4]
[314895065,1708625474950,-500.0,0.00033013,4]
[314895066,1708625474960,-543.61,0.00033013,4]
[314895067,1708625474969,-500.0,0.00033013,4]
[314895068,1708625474979,-787.78,0.00033013,4]
[314895069,1708625474988,-500.0,0.00033013,4]
[314895070,1708625474997,-12927.16,0.00033013,4]
[314895071,1708625475006,-500.0,0.00033013,4]
[314895072,1708625475016,-952.32,0.00033013,4]
[314895073,1708625475024,-1397.23,0.00033013,4]
[314895074,1708625475033,-15657.06,0.00033013,4]
[314895075,1708625475043,-734.09,0.00033013,4]
[314895076,1708625475052,-500.0,0.00033013,4]
[314895077,1708625475061,-500.0,0.00033013,4]
[314895078,1708625475070,-500.0,0.00033013,4]
[314895079,1708625475080,-638.64,0.00033013,4]
[314895080,1708625475091,-500.0,0.00033013,4]
[314895081,1708625475101,-500.0,0.00033013,4]
[314895082,1708625475110,-500.0,0.00033013,4]
[314895083,1708625475119,-500.0,0.00033013,4]
[314895084,1708625475128,-1622.99,0.00033013,4]
[314895085,1708625475137,-2464.49,0.00033013,4]
[314895086,1708625475147,-2266.68,0.00033013,4]
[314895087,1708625475156,-1572.14,0.00033013,4]
[314895088,1708625475165,-500.0,0.00033013,4]
[314895089,1708625475174,-500.0,0.00033013,4]
[314895090,1708625475183,-151.0,0.00033013,7]
[314895091,1708625475192,-1658.88,0.00033013,4]
[314895092,1708625475201,-802.87,0.00033013,4]
[314895093,1708625475210,-1524.56,0.00033013,4]
[314895094,1708625475219,-631.35,0.00033013,4]
[314895095,1708625475228,-500.0,0.00033013,4]
[314895096,1708625475238,-500.0,0.00033013,4]
[314895097,1708625475247,-500.0,0.00033013,4]
[314895098,1708625475256,-500.0,0.00033013,4]
[314895099,1708625475266,-500.0,0.00033013,4]
[314895100,1708625475275,-500.0,0.00033013,4]
[314895101,1708625475284,-795.52,0.00033013,4]
[314895102,1708625475293,-6459.32,0.00033013,4]
[314895103,1708625475302,-1000.0,0.00033013,7]
[314895104,1708625475311,-500.0,0.00033013,4]
[314895105,1708625475321,-3708.97,0.00033013,4]
[314895106,1708625475330,-500.0,0.00033013,4]
[314895107,1708625475340,-500.0,0.00033013,4]
[314895108,1708625475349,-833.35,0.00033013,4]
[314895109,1708625475358,-500.0,0.00033013,4]
[314895110,1708625475368,-1063.1,0.00033013,4]
[314895111,1708625475377,-8548.5,0.00033013,4]
[314895112,1708625475386,-8589.16,0.00033013,4]
[314895113,1708625475398,-725.96,0.00033013,4]
[314895114,1708625475408,-619.16,0.00033013,4]
[314895115,1708625475418,-559.93,0.00033013,4]
[314895116,1708625475427,-1242.959557,0.00033013,7]
[314895117,1708625475437,-500.0,0.00033013,4]
[314895118,1708625475446,-500.0,0.00033013,4]
[314895119,1708625475455,-695.88,0.00033013,4]
[314895120,1708625475464,-885.04,0.00033013,4]
[314895121,1708625475473,-1242.959557,0.00033013,7]
[314895122,1708625475482,-151.0,0.00033013,7]
[314895123,1708625475492,-500.0,0.00033013,4]
[314895124,1708625475501,-151.0,0.00033013,7]
[314895125,1708625475509,-500.0,0.00033013,4]
[314895126,1708625475519,-1152.72,0.00033013,4]
[314895127,1708625475529,-3657.93,0.00033013,4]
[314895128,1708625475538,-1529.13,0.00033013,4]
[314895129,1708625475547,-1521.37,0.00033013,4]
[314895130,1708625475557,-500.0,0.00033013,4]
[314895131,1708625475566,-1371.815247,0.00033013,7]
[314895132,1708625475575,-649.89,0.00033013,4]
[314895133,1708625475585,-500.0,0.00033013,4]
[314895134,1708625475595,-1012.78,0.00033013,4]
[314895135,1708625475604,-500.0,0.00033013,4]
[314895136,1708625475614,-1371.815247,0.00033013,7]
[314895137,1708625475623,-500.0,0.00033013,4]
[314895138,1708625475632,-1281.51,0.00033013,4]
[314895139,1708625475641,-982.4,0.00033013,4]
[314895140,1708625475650,-757.3,0.00033013,4]
[314895141,1708625475661,-151.0,0.00033013,7]
[314895142,1708625475670,-548.38,0.00033013,4]
[314895143,1708625475679,-500.0,0.00033013,4]
[314895144,1708625475689,-2549.51,0.00033013,4]
[314895145,1708625475699,-753.97,0.00033013,4]
[314895146,1708625475707,-2156.76,0.00033013,4]
[314895147,1708625475716,-500.0,0.00033013,4]
[314895148,1708625475725,-296.963224,0.00033013,7]
[314895149,1708625475734,-500.0,0.00033013,4]
[314895150,1708625475744,-2213.41,0.00033013,4]
[314895151,1708625475752,-500.0,0.00033013,4]
[314895152,1708625475762,-4381.7,0.00033013,4]
[314895153,1708625475770,-5006.44,0.00033013,4]
[314895154,1708625475779,-296.963224,0.00033013,7]
[314895155,1708625475789,-500.0,0.00033013,4]
[314895156,1708625475798,-500.0,0.00033013,4]
[314895157,1708625475806,-500.0,0.00033013,4]
[314895158,1708625475816,-411.757149,0.00033013,7]
[314895159,1708625475825,-1083.67,0.00033013,4]
[314895160,1708625475834,-500.0,0.00033013,4]
[314895161,1708625475843,-500.0,0.00033013,4]
[314895162,1708625475852,-500.0,0.00033013,4]
[314895163,1708625475863,-2631.91,0.00033013,4]
[314895164,1708625475875,-500.0,0.00033013,4]
[314895165,1708625475888,-411.757149,0.00033013,7]
[314895166,1708625475897,-647.141138,0.00033013,7]
[314895167,1708625475909,-501.48339482,0.00033013,4]
[314895168,1708625475919,-1050.11,0.00033013,4]
[314895169,1708625475928,-647.141138,0.00033013,7]
[314895170,1708625475937,-928.82,0.00033013,4]
[314895171,1708625475947,-988.3,0.00033013,4]
[314895172,1708625475958,-1569.8,0.00033013,4]
[314895173,1708625475967,-553.85,0.00033013,4]
[314895174,1708625475977,-1347.04,0.00033013,4]
[314895175,1708625475986,-1930.76,0.00033013,4]
[314895176,1708625475996,-500.0,0.00033013,4]
[314895177,1708625476005,-500.0,0.00033013,4]
[314895178,1708625476014,-266.013848,0.00033013,7]
[314895179,1708625476024,-503.17350843,0.00033013,2]
[314895180,1708625476033,-1578.95,0.00033013,4]
[314895181,1708625476042,-500.0,0.00033013,4]
[314895182,1708625476052,-654.06,0.00033013,4]
[314895183,1708625476061,-382.30430713,0.00033013,4]
[314895184,1708625476071,-266.013848,0.00033013,7]
[314895185,1708625476080,-500.0,0.00033013,4]
[314895186,1708625476089,-1152.52,0.00033013,4]
[314895187,1708625476098,-500.0,0.00033013,4]
[314895188,1708625476107,-13046.67,0.00033013,4]
[314895189,1708625476117,-1562.64,0.00033013,4]
[314895190,1708625476126,-554.48,0.00033013,4]
[314895191,1708625476135,-500.0,0.00033013,4]
[314895192,1708625476144,-5718.46,0.00033013,4]
[314895193,1708625476153,-500.0,0.00033013,4]
[314895194,1708625476163,-151.0,0.00033013,7]
[314895195,1708625476172,-585.24,0.00033013,4]
[314895196,1708625476181,-4320.81,0.00033013,4]
[314895197,1708625476190,-1143.61,0.00033013,4]
[314895198,1708625476198,-500.0,0.00033013,4]
[314895199,1708625476207,-649.169362,0.00033013,7]
[314895200,1708625476216,-500.0,0.00033013,4]
[314895201,1708625476224,-500.0,0.00033013,4]
[314895202,1708625476233,-3703.9,0.00033013,4]
[314895203,1708625476242,-500.0,0.00033013,4]
[314895204,1708625476251,-500.0,0.00033013,4]
[314895205,1708625476259,-649.169362,0.00033013,7]
[314895206,1708625476268,-845.41,0.00033013,4]
[314895207,1708625476278,-1239.69,0.00033013,4]
[314895208,1708625476287,-500.0,0.00033013,4]
[314895209,1708625476297,-842.27,0.00033013,4]
[314895210,1708625476306,-2562.83,0.00033013,4]
[314895211,1708625476316,-500.0,0.00033013,4]
[314895212,1708625476325,-1082.3,0.00033013,4]
[314895213,1708625476335,-968.09,0.00033013,4]
[314895214,1708625476344,-192.527771,0.00033013,7]
[314895215,1708625476353,-500.0,0.00033013,4]
[314895216,1708625476363,-500.0,0.00033013,4]
[314895217,1708625476373,-500.0,0.00033013,2]
[314895218,1708625476382,-2763.17,0.00033013,4]
[314895219,1708625476393,-192.527771,0.00033013,7]
[314895220,1708625476404,-1672.02,0.00033013,4]
[314895221,1708625476414,-500.0,0.00033013,4]
[314895222,1708625476423,-500.0,0.00033013,4]
[314895223,1708625476433,-850.13,0.00033013,4]
[314895224,1708625476443,-668.88,0.00033013,4]
[314895225,1708625476452,-500.0,0.00033013,4]
[314895226,1708625476462,-1634.02,0.00033013,4]
[314895227,1708625476472,-500.0,0.00033013,4]
[314895228,1708625476482,-500.0,0.00033013,4]
[314895229,1708625476492,-3311.96,0.00033013,4]
[314895230,1708625476501,-2625.59,0.00033013,4]
[314895231,1708625476511,-1279.14,0.00033013,4]
[314895232,1708625476520,-930.33,0.00033013,4]
[314895233,1708625476530,-500.0,0.00033013,2]
[314895234,1708625476540,-1635.09,0.00033013,4]
[314895235,1708625476550,-619.14,0.00033013,4]
[314895236,1708625476560,-2609.74,0.00033013,4]
[314895237,1708625476570,-500.0,0.00033013,4]
[314895238,1708625476580,-3610.42,0.00033013,4]
[314895239,1708625476590,-310.972495,0.00033013,7]
[314895240,1708625476600,-967.22,0.00033013,4]
[314895241,1708625476610,-310.972495,0.00033013,7]
[314895242,1708625476620,-417.49946274,0.00033013,4]
[314895243,1708625476630,-923.8,0.00033013,4]
[314895244,1708625476640,-1343.66,0.00033013,4]
[314895245,1708625476650,-500.0,0.00033013,2]
[314895246,1708625476660,-2303.413771,0.00033013,7]
[314895247,1708625476669,-2303.413771,0.00033013,7]
[314895248,1708625476679,-310.972495,0.00033013,7]
[314895249,1708625476689,-500.0,0.00033013,4]
[314895250,1708625476699,-310.972495,0.00033013,7]
[314895251,1708625476709,-1380.71,0.00033013,4]
[314895252,1708625476719,-1594.46,0.00033013,4]
[314895253,1708625476729,-8671.59,0.00033013,4]
[314895254,1708625476739,-1079.87,0.00033013,4]
[314895255,1708625476749,-2303.413771,0.00033013,7]
[314895256,1708625476758,-2303.413771,0.00033013,7]
[314895257,1708625476768,-187.799838,0.00033013,7]
[314895258,1708625476778,-1411.77,0.00033013,4]
[314895259,1708625476787,-187.799838,0.00033013,7]
[314895260,1708625476797,-500.0,0.00033013,4]
[314895261,1708625476807,-669.79,0.00033013,4]
[314895262,1708625476817,-1058.44,0.00033013,4]
[314895263,1708625476826,-150.0,0.00033044,2]
[314895264,1708625476836,-150.0,0.0003306,2]
[314895265,1708625476846,-151.0,0.00033063,120]
[314895266,1708625476856,-389.16,0.00033083,2]
[314895267,1708625476870,-200000.0,0.00033091,10]
[314895268,1708625476880,-257.725638,0.00033091,7]
[314895269,1708625476890,-151.0,0.00033091,7]
[314895270,1708625476900,-231.46,0.00033091,7]
[314895271,1708625476911,-231.46,0.00033091,7]
[314895272,1708625476920,-151.0,0.00033091,7]
[314895273,1708625476930,-151.0,0.00033091,7]
[314895274,1708625476939,-151.0,0.00033091,7]
[314895275,1708625476951,-151.0,0.00033091,7]
[314895276,1708625476962,-151.0,0.00033091,3]
[314895277,1708625476971,-151.0,0.00033091,7]
[314895278,1708625476981,-151.0,0.00033091,7]
[314895279,1708625476991,-481.651988,0.00033091,7]
[314895280,1708625477001,-481.651988,0.00033091,7]
[314895281,1708625477011,-150.0,0.00033104,2]
[314895282,1708625477020,-1500.0,0.00033136,2]
[314895283,1708625477029,-259.86311266,0.00033145,2]
[314895284,1708625477039,-397.91,0.0003315,4]
[314895285,1708625477048,-500.0,0.0003315,4]
[314895286,1708625477060,-500.0,0.0003315,4]
[314895287,1708625477070,-500.0,0.0003315,4]
[314895288,1708625477080,-517.77898638,0.0003315,4]
[314895289,1708625477092,-648.40766934,0.0003315,4]
[314895290,1708625477102,-500.0,0.0003315,4]
[314895291,1708625477112,-500.0,0.0003315,4]
[314895292,1708625477121,-500.0,0.0003315,4]
[314895293,1708625477131,-500.0,0.0003315,4]
[314895294,1708625477142,-500.0,0.0003315,4]
[314895295,1708625477151,-500.0,0.0003315,4]
[314895296,1708625477161,-500.0,0.0003315,4]
[314895297,1708625477171,-500.0,0.0003315,4]
[314895298,1708625477181,-500.0,0.0003315,4]
[314895299,1708625477190,-500.0,0.0003315,4]
[314895300,1708625477200,-500.0,0.0003315,4]
[314895301,1708625477210,-500.0,0.0003315,4]
[314895302,1708625477220,-500.0,0.0003315,4]
[314895303,1708625477230,-560.24,0.0003315,4]
[314895304,1708625477239,-500.0,0.0003315,4]
[314895305,1708625477248,-192.04170248,0.0003315,4]
[314895306,1708625477258,-500.0,0.0003315,4]
[314895307,1708625477267,-500.0,0.0003315,4]
[314895308,1708625477277,-500.0,0.0003315,2]
[314895309,1708625477287,-326.64331533,0.0003315,4]
[314895310,1708625477297,-500.0,0.0003315,4]
[314895311,1708625477306,-500.0,0.0003315,4]
[314895312,1708625477316,-514.99,0.0003315,4]
[314895313,1708625477325,-500.0,0.0003315,4]
[314895314,1708625477335,-500.0,0.0003315,4]
[314895315,1708625477345,-555.79,0.0003315,4]
[314895316,1708625477355,-500.0,0.0003315,4]
[314895317,1708625477365,-500.0,0.0003315,4]
[314895318,1708625477375,-500.0,0.0003315,4]
[314895319,1708625477385,-641.75,0.0003315,4]
[314895320,1708625477396,-562.00904899,0.0003315,4]
[314895321,1708625477406,-500.0,0.0003315,4]
[314895322,1708625477416,-750.74,0.0003315,4]
[314895323,1708625477425,-500.0,0.0003315,4]
[314895324,1708625477435,-151.0,0.0003315,7]
[314895325,1708625477444,-500.0,0.0003315,4]
[314895326,1708625477456,-500.0,0.0003315,4]
[314895327,1708625477466,-500.0,0.0003315,4]
[314895328,1708625477476,-513.07399887,0.0003315,4]
[314895329,1708625477488,-500.0,0.0003315,4]
[314895330,1708625477498,-500.0,0.0003315,4]
[314895331,1708625477510,-500.0,0.0003315,4]
[314895332,1708625477521,-542.31,0.0003315,4]
[314895333,1708625477532,-500.0,0.0003315,4]
[314895334,1708625477543,-500.0,0.0003315,4]
[314895335,1708625477553,-500.0,0.0003315,4]
[314895336,1708625477563,-500.0,0.0003315,4]
[314895337,1708625477573,-621.21,0.0003315,4]
[314895338,1708625477583,-500.0,0.0003315,4]
[314895339,1708625477593,-500.0,0.0003315,4]
[314895340,1708625477603,-231.46,0.0003315,7]
[314895341,1708625477614,-250.0,0.0003315,4]
[314895342,1708625477623,-231.46,0.0003315,7]
[314895343,1708625477634,-500.0,0.0003315,4]
[314895344,1708625477643,-551.07,0.0003315,4]
[314895345,1708625477653,-500.0,0.0003315,4]
[314895346,1708625477664,-744.09,0.0003315,4]
[314895347,1708625477673,-500.0,0.0003315,4]
[314895348,1708625477683,-500.0,0.0003315,4]
[314895349,1708625477693,-500.0,0.0003315,4]
[314895350,1708625477702,-500.0,0.0003315,4]
[314895351,1708625477712,-500.0,0.0003315,4]
[314895352,1708625477722,-500.0,0.0003315,4]
[314895353,1708625477732,-151.0,0.0003315,7]
[314895354,1708625477741,-500.0,0.0003315,4]
[314895355,1708625477751,-500.0,0.0003315,4]
[314895356,1708625477761,-500.0,0.0003315,4]
[314895357,1708625477771,-500.0,0.0003315,4]
[314895358,1708625477780,-500.0,0.0003315,4]
[314895359,1708625477790,-160.61636403,0.0003315,4]
[314895360,1708625477799,-500.0,0.0003315,4]
[314895361,1708625477809,-151.0,0.0003315,7]
[314895362,1708625477819,-573.53,0.0003315,4]
[314895363,1708625477829,-500.0,0.0003315,4]
[314895364,1708625477839,-500.0,0.0003315,4]
[314895365,1708625477848,-151.0,0.0003315,7]
[314895366,1708625477858,-500.0,0.0003315,4]
[314895367,1708625477868,-500.0,0.0003315,4]
[314895368,1708625477880,-500.0,0.0003315,4]
[314895369,1708625477890,-500.0,0.0003315,4]
[314895370,1708625477900,-500.0,0.0003315,4]
[314895371,1708625477911,-509.08298058,0.0003315,4]
[314895372,1708625477922,-500.0,0.0003315,4]
[314895373,1708625477932,-482.68015175,0.0003315,4]
[314895374,1708625477942,-500.0,0.0003315,4]
[314895375,1708625477952,-500.0,0.0003315,4]
[314895376,1708625477963,-500.0,0.0003315,4]
[314895377,1708625477974,-1000.0,0.0003315,7]
[314895378,1708625477984,-500.0,0.0003315,4]
[314895379,1708625477994,-500.0,0.0003315,4]
[314895380,1708625478004,-500.0,0.0003315,4]
[314895381,1708625478014,-531.29690557,0.0003315,4]
[314895382,1708625478024,-500.0,0.0003315,4]
[314895383,1708625478034,-524.07,0.0003315,4]
[314895384,1708625478045,-151.0,0.0003315,7]
[314895385,1708625478055,-500.0,0.0003315,4]
[314895386,1708625478065,-500.0,0.0003315,4]
[314895387,1708625478075,-500.0,0.0003315,4]
[314895388,1708625478085,-951.85,0.0003315,4]
[314895389,1708625478095,-500.0,0.0003315,4]
[314895390,1708625478105,-595.80267758,0.0003315,4]
[314895391,1708625478115,-926.28,0.0003315,4]
[314895392,1708625478125,-500.0,0.0003315,4]
[314895393,1708625478135,-744.11,0.0003315,4]
[314895394,1708625478145,-529.22,0.0003315,4]
[314895395,1708625478155,-500.0,0.0003315,4]
[314895396,1708625478167,-500.0,0.0003315,4]
[314895397,1708625478177,-500.0,0.0003315,4]
[314895398,1708625478187,-179.71575737,0.0003315,4]
[314895399,1708625478198,-500.0,0.0003315,4]
[314895400,1708625478207,-151.22093265,0.0003315,4]
[314895401,1708625478217,-1143.73,0.0003315,4]
[314895402,1708625478228,-512.33924992,0.0003315,4]
[314895403,1708625478239,-500.0,0.0003315,4]
[314895404,1708625478249,-500.0,0.0003315,4]
[314895405,1708625478260,-545.74278808,0.0003315,4]
[314895406,1708625478270,-500.0,0.0003315,4]